fUSD/lending_fUSD_20250702
["ID","MTS","AMOUNT","RATE_DAILY","PERIOD"]
[369043476,1751443851178,-151.0,0.00016438,2]
[369043478,1751443851187,-234.31349547,0.00016438,2]
[369043480,1751443851196,-151.0,0.00016438,2]
[369043482,1751443851206,-490.0,0.00016438,2]
[369043484,1751443851215,-490.0,0.00016438,2]
[369043486,1751443851225,-1606.45,0.00016438,2]
[369043488,1751443851234,-389.33220379,0.00016438,2]
[369043490,1751443851243,-490.0,0.00016438,2]
[369043492,1751443851252,-694.55,0.00016438,2]
[369043494,1751443851261,-1047.21,0.00016438,2]
[369043496,1751443851272,-490.0,0.00016438,2]
[369043498,1751443851281,-490.0,0.00016438,2]
[369043499,1751443851291,-490.0,0.00016438,2]
[369043501,1751443851302,-490.0,0.00016438,2]
[369043503,1751443851311,-807.66,0.00016438,2]
[369043505,1751443851320,-496.37050767,0.00016438,2]
[369043507,1751443851330,-619.15,0.00016438,2]
[369043510,1751443851339,-490.0,0.00016438,2]
[369043511,1751443851348,-490.0,0.00016438,2]
[369043513,1751443851357,-490.0,0.00016438,2]
[369043515,1751443851367,-490.0,0.00016438,2]
[369043517,1751443851377,-490.0,0.00016438,2]
[369043519,1751443851386,-490.0,0.00016438,2]
[369043521,1751443851395,-490.0,0.00016438,2]
[369043523,1751443851404,-490.0,0.00016438,2]
[369043525,1751443851413,-490.0,0.00016438,2]
[369043527,1751443851422,-490.0,0.00016438,2]
[369043529,1751443851431,-490.0,0.00016438,2]
[369043532,1751443851441,-490.0,0.00016438,2]
[369043533,1751443851450,-490.0,0.00016438,2]
[369043535,1751443851460,-490.0,0.00016438,2]
[369043537,1751443851469,-490.0,0.00016438,2]
[369043540,1751443851478,-495.3748867,0.00016438,2]
[369043541,1751443851487,-493.22,0.00016438,2]
[369043543,1751443851496,-612.58,0.00016438,2]
[369043545,1751443851505,-409.21815412,0.00016438,2]
[369043547,1751443851515,-490.0,0.00016438,2]
[369043550,1751443851524,-490.0,0.00016438,2]
[369043552,1751443851534,-490.0,0.00016438,2]
[369043554,1751443851543,-490.0,0.00016438,2]
[369043556,1751443851553,-490.0,0.00016438,2]
[369043558,1751443851561,-490.0,0.00016438,2]
[369043559,1751443851570,-490.0,0.00016438,2]
[369043561,1751443851580,-490.0,0.00016438,2]
[369043563,1751443851589,-490.0,0.00016438,2]
[369043566,1751443851599,-425.49035528,0.00016438,2]
[369043567,1751443851608,-490.0,0.00016438,2]
[369043569,1751443851618,-151.0,0.00016438,2]
[369043571,1751443851627,-151.0,0.00016438,2]
[369043574,1751443851636,-490.0,0.00016438,2]
[369043575,1751443851645,-1027.49,0.00016438,2]
[369043577,1751443851655,-490.0,0.00016438,2]
[369043579,1751443851664,-490.0,0.00016438,2]
[369043581,1751443851674,-490.0,0.00016438,2]
[369043583,1751443851683,-490.0,0.00016438,2]
[369043586,1751443851692,-490.0,0.00016438,2]
[369043588,1751443851702,-490.0,0.00016438,2]
[369043590,1751443851711,-1177.02,0.00016438,2]
[369043592,1751443851721,-490.0,0.00016438,2]
[369043593,1751443851730,-490.0,0.00016438,2]
[369043596,1751443851739,-490.0,0.00016438,2]
[369043598,1751443851749,-490.0,0.00016438,2]
[369043600,1751443851758,-490.0,0.00016438,2]
[369043601,1751443851768,-490.0,0.00016438,2]
[369043603,1751443851778,-166.942403,0.00016438,2]
[369043606,1751443851787,-1844.52,0.00016438,2]
[369043608,1751443851797,-153.57287261,0.00016438,2]
[369043610,1751443851806,-490.0,0.00016438,2]
[369043612,1751443851816,-490.0,0.00016438,2]
[369043614,1751443851826,-501.80980244,0.00016438,2]
[369043615,1751443851835,-547.68,0.00016438,2]
[369043618,1751443851844,-490.0,0.00016438,2]
[369043619,1751443851853,-490.0,0.00016438,2]
[369043621,1751443851863,-490.0,0.00016438,2]
[369043624,1751443851873,-202.696917,0.00016438,2]
[369043626,1751443851882,-490.0,0.00016438,2]
[369043627,1751443851892,-490.0,0.00016438,2]
[369043629,1751443851901,-490.0,0.00016438,2]
[369043632,1751443851912,-1444.33,0.00016438,2]
[369043633,1751443851922,-490.0,0.00016438,2]
[369043635,1751443851932,-832.95,0.00016438,2]
[369043638,1751443851943,-1275.28,0.00016438,2]
[369043639,1751443851952,-162.01138213,0.00016438,2]
[369043642,1751443851962,-260.03725118,0.00016438,2]
[369043643,1751443851972,-493.02831789,0.00016438,2]
[369043645,1751443851985,-490.0,0.00016438,2]
[369043648,1751443851995,-490.0,0.00016438,2]
[369043649,1751443852004,-1446.68,0.00016438,2]
[369043651,1751443852014,-490.0,0.00016438,2]
[369043654,1751443852026,-490.0,0.00016438,2]
[369043656,1751443852036,-917.8,0.00016438,2]
[369043658,1751443852045,-5166.32,0.00016438,2]
[369043659,1751443852057,-490.0,0.00016438,2]
[369043661,1751443852067,-151.0,0.00016438,2]
[369043664,1751443852077,-151.0,0.00016438,2]
[369043665,1751443852087,-490.0,0.00016438,2]
[369043668,1751443852096,-490.0,0.00016438,2]
[369043670,1751443852106,-490.0,0.00016438,2]
[369043672,1751443852116,-490.0,0.00016438,2]
[369043673,1751443852125,-490.0,0.00016438,2]
[369043675,1751443852135,-151.0,0.00016438,2]
[369043678,1751443852144,-490.0,0.00016438,2]
[369043679,1751443852154,-490.0,0.00016438,2]
[369043682,1751443852163,-490.0,0.00016438,2]
[369043684,1751443852172,-490.0,0.00016438,2]
[369043686,1751443852181,-490.0,0.00016438,2]
[369043688,1751443852190,-490.0,0.00016438,2]
[369043690,1751443852200,-1735.85,0.00016438,2]
[369043691,1751443852209,-1632.37,0.00016438,2]
[369043693,1751443852218,-1121.6,0.00016438,2]
[369043696,1751443852229,-490.0,0.00016438,2]
[369043698,1751443852238,-490.0,0.00016438,2]
[369043699,1751443852247,-627.43,0.00016438,2]
[369043701,1751443852255,-1047.36,0.00016438,2]
[369043703,1751443852265,-2067.16,0.00016438,2]
[369043705,1751443852274,-933.48,0.00016438,2]
[369043707,1751443852283,-490.0,0.00016438,2]
[369043709,1751443852292,-490.0,0.00016438,2]
[369043711,1751443852301,-490.0,0.00016438,2]
[369043713,1751443852311,-238.46313109,0.00016438,2]
[369043715,1751443852321,-490.0,0.00016438,2]
[369043717,1751443852330,-490.0,0.00016438,2]
[369043719,1751443852339,-490.0,0.00016438,2]
[369043721,1751443852348,-490.0,0.00016438,2]
[369043723,1751443852358,-490.0,0.00016438,2]
[369043725,1751443852367,-490.0,0.00016438,2]
[369043727,1751443852376,-2505.75,0.00016438,2]
[369043729,1751443852386,-491.37245952,0.00016438,2]
[369043731,1751443852395,-490.0,0.00016438,2]
[369043733,1751443852404,-490.0,0.00016438,2]
[369043735,1751443852414,-490.0,0.00016438,2]
[369043737,1751443852423,-490.0,0.00016438,2]
[369043739,1751443852432,-1445.12,0.00016438,2]
[369043741,1751443852441,-490.0,0.00016438,2]
[369043743,1751443852451,-1334.25,0.00016438,2]
[369043745,1751443852460,-490.0,0.00016438,2]
[369043747,1751443852469,-490.0,0.00016438,2]
[369043749,1751443852478,-490.0,0.00016438,2]
[369043751,1751443852487,-490.0,0.00016438,2]
[369043753,1751443852496,-669.38,0.00016438,2]
[369043755,1751443852505,-490.0,0.00016438,2]
[369043757,1751443852515,-490.0,0.00016438,2]
[369043759,1751443852524,-490.0,0.00016438,2]
[369043761,1751443852534,-2957.27,0.00016438,2]
[369043763,1751443852543,-518.88,0.00016438,2]
[369043765,1751443852552,-490.0,0.00016438,2]
[369043767,1751443852561,-490.0,0.00016438,2]
[369043769,1751443852571,-1429.21,0.00016438,2]
[369043771,1751443852580,-3610.92,0.00016438,2]
[369043773,1751443852589,-490.0,0.00016438,2]
[369043775,1751443852599,-689.38,0.00016438,2]
[369043777,1751443852608,-490.0,0.00016438,2]
[369043779,1751443852618,-2203.2,0.00016438,2]
[369043781,1751443852627,-899.95,0.00016438,2]
[369043783,1751443852636,-490.0,0.00016438,2]
[369043785,1751443852646,-490.0,0.00016438,2]
[369043787,1751443852655,-490.0,0.00016438,2]
[369043789,1751443852664,-490.0,0.00016438,2]
[369043791,1751443852674,-491.56,0.00016438,2]
[369043793,1751443852683,-7460.92,0.00016438,2]
[369043795,1751443852692,-172.935231,0.00016438,2]
[369043797,1751443852701,-490.0,0.00016438,2]
[369043799,1751443852711,-731.85,0.00016438,2]
[369043801,1751443852720,-2064.09,0.00016438,2]
[369043803,1751443852730,-348.85957616,0.00016438,2]
[369043804,1751443852739,-490.0,0.00016438,2]
[369043807,1751443852748,-1173.71,0.00016438,2]
[369043808,1751443852758,-490.0,0.00016438,2]
[369043811,1751443852768,-490.0,0.00016438,2]
[369043812,1751443852778,-1240.2,0.00016438,2]
[369043814,1751443852787,-490.0,0.00016438,2]
[369043816,1751443852797,-490.0,0.00016438,2]
[369043818,1751443852806,-2162.36,0.00016438,2]
[369043821,1751443852816,-490.0,0.00016438,2]
[369043823,1751443852827,-490.0,0.00016438,2]
[369043824,1751443852836,-1007.36,0.00016438,2]
[369043826,1751443852846,-490.0,0.00016438,2]
[369043828,1751443852855,-490.0,0.00016438,2]
[369043830,1751443852864,-2387.72,0.00016438,2]
[369043832,1751443852874,-1282.09,0.00016438,2]
[369043834,1751443852884,-490.0,0.00016438,2]
[369043836,1751443852893,-490.0,0.00016438,2]
[369043839,1751443852903,-490.0,0.00016438,2]
[369043840,1751443852912,-3053.06,0.00016438,2]
[369043842,1751443852922,-490.0,0.00016438,2]
[369043843,1751443852931,-1438.15,0.00016438,2]
[369043844,1751443852940,-1178.99,0.00016438,2]
[369043845,1751443852950,-390.80386107,0.00016438,2]
[369043846,1751443852959,-490.0,0.00016438,2]
[369043847,1751443852970,-490.0,0.00016438,2]
[369043848,1751443852987,-490.0,0.00016438,2]
[369043849,1751443852997,-490.0,0.00016438,2]
[369043850,1751443853006,-490.0,0.00016438,2]
[369043851,1751443853016,-490.0,0.00016438,2]
[369043852,1751443853027,-278.55150099,0.00016438,2]
[369043853,1751443853036,-535.18,0.00016438,2]
[369043854,1751443853045,-1463.2,0.00016438,2]
[369043856,1751443853055,-490.0,0.00016438,2]
[369043858,1751443853065,-490.0,0.00016438,2]
[369043859,1751443853074,-490.0,0.00016438,2]
[369043861,1751443853086,-2787.82,0.00016438,2]
[369043863,1751443853096,-1013.85,0.00016438,2]
[369043865,1751443853106,-6712.07,0.00016438,2]
[369043868,1751443853116,-782.74,0.00016438,2]
[369043870,1751443853126,-490.0,0.00016438,2]
[369043872,1751443853135,-490.0,0.00016438,2]
[369043874,1751443853145,-490.0,0.00016438,2]
[369043875,1751443853155,-2664.77,0.00016438,2]
[369043877,1751443853165,-490.0,0.00016438,2]
[369043880,1751443853174,-490.0,0.00016438,2]
[369043881,1751443853183,-490.0,0.00016438,2]
[369043883,1751443853193,-842.83,0.00016438,2]
[369043901,1751443853343,-550.05788987,0.00016438,2]
[369043903,1751443853355,-490.0,0.00016438,2]
[369043905,1751443853364,-598.13,0.00016438,2]
[369043907,1751443853374,-490.0,0.00016438,2]
[369043909,1751443853384,-490.0,0.00016438,2]
[369043911,1751443853393,-490.0,0.00016438,2]
[369043913,1751443853402,-490.0,0.00016438,2]
[369043915,1751443853411,-1471.16,0.00016438,2]
[369043917,1751443853421,-490.0,0.00016438,2]
[369043920,1751443853431,-5997.37,0.00016438,2]
[369043921,1751443853440,-490.0,0.00016438,2]
[369043924,1751443853449,-630.44,0.00016438,2]
[369043926,1751443853459,-151.0,0.00016438,2]
[369043928,1751443853468,-1219.25,0.00016438,2]
[369043929,1751443853477,-1514.4,0.00016438,2]
[369043931,1751443853486,-674.47,0.00016438,2]
[369043933,1751443853495,-490.0,0.00016438,2]
[369043935,1751443853504,-490.0,0.00016438,2]
[369043937,1751443853514,-2110.375916,0.00016438,2]
[369043939,1751443853523,-151.0,0.00016438,2]
[369043941,1751443853533,-490.0,0.00016438,2]
[369043943,1751443853542,-2110.375916,0.00016438,2]
[369043945,1751443853551,-151.0,0.00016438,2]
[369043947,1751443853560,-490.0,0.00016438,2]
[369043949,1751443853569,-490.0,0.00016438,2]
[369043951,1751443853578,-542.07,0.00016438,2]
[369043953,1751443853588,-1489.42,0.00016438,2]
[369043955,1751443853597,-2110.375916,0.00016438,2]
[369043957,1751443853606,-490.0,0.00016438,2]
[369043959,1751443853616,-490.0,0.00016438,2]
[369043961,1751443853625,-2110.375916,0.00016438,2]
[369043963,1751443853635,-490.0,0.00016438,2]
[369043965,1751443853644,-490.0,0.00016438,2]
[369043967,1751443853653,-490.0,0.00016438,2]
[369043969,1751443853662,-1032.44,0.00016438,2]
[369043971,1751443853671,-849.42,0.00016438,2]
[369043973,1751443853680,-67894.73,0.00016438,2]
[369043975,1751443853689,-490.0,0.00016438,2]
[369043977,1751443853699,-490.0,0.00016438,2]
[369043979,1751443853708,-2296.22,0.00016438,2]
[369043981,1751443853717,-490.0,0.00016438,2]
[369043983,1751443853726,-1486.81,0.00016438,2]
[369043985,1751443853736,-490.0,0.00016438,2]
[369043987,1751443853747,-490.0,0.00016438,2]
[369043989,1751443853756,-1010.69,0.00016438,2]
[369043991,1751443853766,-2929.42,0.00016438,2]
[369043993,1751443853775,-490.0,0.00016438,2]
[369043995,1751443853784,-805.3,0.00016438,2]
[369043997,1751443853793,-490.0,0.00016438,2]
[369043999,1751443853803,-490.0,0.00016438,2]
[369044001,1751443853812,-490.0,0.00016438,2]
[369044003,1751443853822,-490.0,0.00016438,2]
[369044005,1751443853831,-490.0,0.00016438,2]
[369044007,1751443853841,-490.0,0.00016438,2]
[369044009,1751443853850,-490.0,0.00016438,2]
[369044011,1751443853859,-3128.44,0.00016438,2]
[369044013,1751443853868,-1140.54,0.00016438,2]
[369044015,1751443853878,-490.0,0.00016438,2]
[369044017,1751443853887,-490.0,0.00016438,2]
[369044019,1751443853896,-490.0,0.00016438,2]
[369044021,1751443853906,-490.0,0.00016438,2]
[369044023,1751443853915,-490.0,0.00016438,2]
[369044025,1751443853924,-490.0,0.00016438,2]
[369044027,1751443853933,-3011.27,0.00016438,2]
[369044029,1751443853942,-490.0,0.00016438,2]
[369044031,1751443853952,-490.0,0.00016438,2]
[369044033,1751443853961,-17278.8,0.00016438,2]
[369044035,1751443853970,-2160.33,0.00016438,2]
[369044037,1751443853984,-6752.34,0.00016438,2]
[369044039,1751443853993,-490.0,0.00016438,2]
[369044041,1751443854003,-1275.9,0.00016438,2]
[369044043,1751443854012,-490.0,0.00016438,2]
[369044045,1751443854022,-490.0,0.00016438,2]
[369044047,1751443854032,-491.13,0.00016438,2]
[369044049,1751443854041,-490.0,0.00016438,2]
[369044051,1751443854050,-490.0,0.00016438,2]
[369044053,1751443854060,-5952.97,0.00016438,2]
[369044055,1751443854070,-490.0,0.00016438,2]
[369044057,1751443854079,-1871.33,0.00016438,2]
[369044059,1751443854088,-500.0,0.00016438,2]
[369044061,1751443854097,-490.0,0.00016438,2]
[369044063,1751443854107,-500.0,0.00016438,2]
[369044065,1751443854115,-500.0,0.00016438,2]
[369044067,1751443854125,-7101.86,0.00016438,2]
[369044069,1751443854134,-500.0,0.00016438,2]
[369044071,1751443854143,-490.0,0.00016438,2]
[369044073,1751443854152,-490.0,0.00016438,2]
[369044075,1751443854161,-490.0,0.00016438,2]
[369044077,1751443854171,-2855.9,0.00016438,2]
[369044079,1751443854180,-490.0,0.00016438,2]
[369044081,1751443854189,-720.51,0.00016438,2]
[369044083,1751443854198,-490.0,0.00016438,2]
[369044085,1751443854208,-952.11,0.00016438,2]
[369044087,1751443854218,-490.0,0.00016438,2]
[369044089,1751443854226,-1170.91,0.00016438,2]
[369044091,1751443854236,-490.0,0.00016438,2]
[369044093,1751443854247,-490.0,0.00016438,2]
[369044095,1751443854255,-3118.74,0.00016438,2]
[369044097,1751443854265,-1747.22,0.00016438,2]
[369044100,1751443854286,-868.92,0.00016438,2]
[369044102,1751443854302,-490.0,0.00016438,2]
[369044105,1751443854322,-490.0,0.00016438,2]
[369044108,1751443854340,-490.0,0.00016438,2]
[369044111,1751443854355,-500.0,0.00016438,2]
[369044114,1751443854373,-500.0,0.00016438,2]
[369044117,1751443854393,-1207.8,0.00016438,2]
[369044120,1751443854411,-500.0,0.00016438,2]
[369044123,1751443854429,-490.0,0.00016438,2]
[369044125,1751443854450,-500.0,0.00016438,2]
[369044128,1751443854469,-490.0,0.00016438,2]
[369044131,1751443854484,-490.0,0.00016438,2]
[369044134,1751443854498,-490.0,0.00016438,2]
[369044136,1751443854515,-2319.53,0.00016438,2]
[369044139,1751443854529,-490.0,0.00016438,2]
[369044142,1751443854546,-490.0,0.00016438,2]
[369044144,1751443854560,-490.0,0.00016438,2]
[369044147,1751443854575,-490.0,0.00016438,2]
[369044149,1751443854591,-490.0,0.00016438,2]
[369044152,1751443854607,-490.0,0.00016438,2]
[369044155,1751443854622,-490.0,0.00016438,2]
[369044157,1751443854637,-500.0,0.00016438,2]
[369044160,1751443854653,-514.2405018,0.00016438,2]
[369044162,1751443854668,-490.0,0.00016438,2]
[369044165,1751443854684,-490.0,0.00016438,2]
[369044167,1751443854700,-490.0,0.00016438,2]
[369044170,1751443854714,-490.0,0.00016438,2]
[369044172,1751443854731,-1040.13,0.00016438,2]
[369044175,1751443854748,-490.0,0.00016438,2]
[369044177,1751443854763,-490.0,0.00016438,2]
[369044180,1751443854782,-490.0,0.00016438,2]
[369044183,1751443854797,-490.0,0.00016438,2]
[369044185,1751443854812,-151.0,0.00016438,2]
[369044188,1751443854828,-490.0,0.00016438,2]
[369044191,1751443854843,-3977.53,0.00016438,2]
[369044193,1751443854858,-497.89474933,0.00016438,2]
[369044196,1751443854874,-996.93,0.00016438,2]
[369044199,1751443854889,-151.0,0.00016438,2]
[369044201,1751443854904,-996.93,0.00016438,2]
[369044204,1751443854920,-151.0,0.00016438,2]
[369044206,1751443854936,-3039.24,0.00016438,2]
[369044209,1751443854951,-490.0,0.00016438,2]
[369044212,1751443854967,-996.93,0.00016438,2]
[369044214,1751443854984,-996.93,0.00016438,2]
[369044217,1751443855000,-490.0,0.00016438,2]
[369044219,1751443855015,-490.0,0.00016438,2]
[369044222,1751443855031,-1313.53,0.00016438,2]
[369044225,1751443855047,-490.0,0.00016438,2]
[369044227,1751443855064,-633.45,0.00016438,2]
[369044229,1751443855088,-2799.1,0.00016438,2]
[369044232,1751443855112,-490.0,0.00016438,2]
[369044234,1751443855128,-151.0,0.00016438,2]
[369044236,1751443855146,-490.0,0.00016438,2]
[369044238,1751443855171,-490.0,0.00016438,2]
[369044241,1751443855191,-298.78559114,0.00016438,2]
[369044244,1751443855207,-277.361209,0.00016438,2]
[369044246,1751443855222,-490.0,0.00016438,2]
[369044249,1751443855240,-490.0,0.00016438,2]
[369044251,1751443855256,-490.0,0.00016438,2]
[369044254,1751443855273,-490.0,0.00016438,2]
[369044256,1751443855287,-490.0,0.00016438,2]
[369044259,1751443855302,-490.0,0.00016438,2]
[369044261,1751443855316,-492.50869779,0.00016438,2]
[369044264,1751443855332,-1596.21,0.00016438,2]
[369044267,1751443855346,-492.85634952,0.00016438,2]
[369044269,1751443855362,-1139.57,0.00016438,2]
[369044272,1751443855377,-490.0,0.00016438,2]
[369044275,1751443855392,-490.0,0.00016438,2]
[369044277,1751443855409,-2929.3,0.00016438,2]
[369044280,1751443855424,-490.0,0.00016438,2]
[369044283,1751443855439,-3911.18,0.00016438,2]
[369044285,1751443855454,-490.0,0.00016438,2]
[369044288,1751443855472,-1131.94,0.00016438,2]
[369044290,1751443855487,-496.80134305,0.00016438,2]
[369044293,1751443855501,-711.03,0.00016438,2]
[369044295,1751443855517,-490.0,0.00016438,2]
[369044298,1751443855531,-1779.51,0.00016438,2]
[369044301,1751443855546,-490.0,0.00016438,2]
[369044303,1751443855561,-490.0,0.00016438,2]
[369044306,1751443855576,-1356.55,0.00016438,2]
[369044308,1751443855591,-490.0,0.00016438,2]
[369044311,1751443855607,-490.0,0.00016438,2]
[369044314,1751443855622,-490.0,0.00016438,2]
[369044316,1751443855638,-490.0,0.00016438,2]
[369044319,1751443855653,-490.0,0.00016438,2]
[369044321,1751443855667,-547.99,0.00016438,2]
[369044324,1751443855682,-494.44223444,0.00016438,2]
[369044326,1751443855697,-490.0,0.00016438,2]
[369044329,1751443855712,-2375.37,0.00016438,2]
[369044332,1751443855727,-1022.62,0.00016438,2]
[369044334,1751443855741,-878.16,0.00016438,2]
[369044337,1751443855757,-7196.77,0.00016438,2]
[369044339,1751443855772,-825.74,0.00016438,2]
[369044342,1751443855787,-490.0,0.00016438,2]
[369044344,1751443855801,-2726.78,0.00016438,2]
[369044347,1751443855815,-490.0,0.00016438,2]
[369044350,1751443855832,-1004.56,0.00016438,2]
[369044372,1751443856043,-584.4574432,0.00016438,2]
[369044375,1751443856071,-490.0,0.00016438,2]
[369044377,1751443856081,-490.0,0.00016438,2]
[369044379,1751443856090,-1200.82,0.00016438,2]
[369044382,1751443856099,-490.0,0.00016438,2]
[369044383,1751443856108,-480.28960093,0.00016438,2]
[369044386,1751443856118,-2625.54,0.00016438,2]
[369044387,1751443856127,-151.0,0.00016438,2]
[369044390,1751443856137,-151.0,0.00016438,2]
[369044392,1751443856146,-490.0,0.00016438,2]
[369044394,1751443856155,-490.0,0.00016438,2]
[369044396,1751443856166,-199.361757,0.00016438,2]
[369044397,1751443856176,-490.0,0.00016438,2]
[369044399,1751443856185,-1438.65,0.00016438,2]
[369044401,1751443856194,-1143.41,0.00016438,2]
[369044403,1751443856203,-585.57,0.00016438,2]
[369044404,1751443856212,-804.53,0.00016438,2]
[369044405,1751443856221,-724.35,0.00016438,2]
[369044406,1751443856230,-1280.55,0.00016438,2]
[369044407,1751443856240,-2899.6,0.00016438,2]
[369044408,1751443856249,-490.0,0.00016438,2]
[369044409,1751443856257,-490.0,0.00016438,2]
[369044410,1751443856268,-493.660825,0.00016438,2]
[369044411,1751443856277,-1860.69,0.00016438,2]
[369044412,1751443856286,-5605.97,0.00016438,2]
[369044413,1751443856296,-490.0,0.00016438,2]
[369044414,1751443856305,-490.0,0.00016438,2]
[369044415,1751443856314,-490.0,0.00016438,2]
[369044416,1751443856323,-2365.59,0.00016438,2]
[369044417,1751443856332,-490.0,0.00016438,2]
[369044419,1751443856341,-490.0,0.00016438,2]
[369044421,1751443856351,-490.0,0.00016438,2]
[369044423,1751443856360,-490.0,0.00016438,2]
[369044425,1751443856370,-492.43858548,0.00016438,2]
[369044427,1751443856380,-490.0,0.00016438,2]
[369044429,1751443856390,-490.0,0.00016438,2]
[369044431,1751443856399,-918.74,0.00016438,2]
[369044433,1751443856408,-490.0,0.00016438,2]
[369044435,1751443856418,-4041.74,0.00016438,2]
[369044437,1751443856427,-490.0,0.00016438,2]
[369044439,1751443856435,-1500.0,0.00016438,2]
[369044441,1751443856445,-8300.84,0.00016438,2]
[369044443,1751443856454,-1086.73,0.00016438,2]
[369044445,1751443856463,-490.0,0.00016438,2]
[369044447,1751443856472,-702.25,0.00016438,2]
[369044449,1751443856482,-1330.25,0.00016438,2]
[369044451,1751443856491,-490.0,0.00016438,2]
[369044453,1751443856501,-490.0,0.00016438,2]
[369044455,1751443856510,-501.61596856,0.00016438,2]
[369044457,1751443856523,-3123.04,0.00016438,2]
[369044459,1751443856532,-1893.67,0.00016438,2]
[369044461,1751443856542,-1850.74,0.00016438,2]
[369044463,1751443856551,-490.0,0.00016438,2]
[369044465,1751443856560,-490.0,0.00016438,2]
[369044467,1751443856569,-500.0,0.00016438,2]
[369044469,1751443856579,-4251.24,0.00016438,2]
[369044471,1751443856588,-490.0,0.00016438,2]
[369044473,1751443856598,-490.0,0.00016438,2]
[369044475,1751443856607,-490.0,0.00016438,2]
[369044477,1751443856616,-748.99,0.00016438,2]
[369044479,1751443856626,-490.0,0.00016438,2]
[369044481,1751443856635,-490.0,0.00016438,2]
[369044483,1751443856644,-490.0,0.00016438,2]
[369044485,1751443856653,-1305.09,0.00016438,2]
[369044487,1751443856662,-490.0,0.00016438,2]
[369044489,1751443856671,-490.0,0.00016438,2]
[369044491,1751443856681,-490.0,0.00016438,2]
[369044492,1751443856690,-490.0,0.00016438,2]
[369044494,1751443856699,-1364.6,0.00016438,2]
[369044497,1751443856709,-490.0,0.00016438,2]
[369044498,1751443856718,-490.0,0.00016438,2]
[369044500,1751443856728,-490.0,0.00016438,2]
[369044502,1751443856738,-1490.52,0.00016438,2]
[369044504,1751443856747,-1307.49,0.00016438,2]
[369044506,1751443856756,-2001.06,0.00016438,2]
[369044508,1751443856765,-3030.68,0.00016438,2]
[369044510,1751443856775,-463.78594834,0.00016438,2]
[369044513,1751443856784,-490.0,0.00016438,2]
[369044515,1751443856794,-1217.98,0.00016438,2]
[369044517,1751443856804,-490.0,0.00016438,2]
[369044519,1751443856813,-681.49,0.00016438,2]
[369044521,1751443856823,-490.0,0.00016438,2]
[369044523,1751443856833,-490.0,0.00016438,2]
[369044525,1751443856843,-1408.82,0.00016438,2]
[369044527,1751443856853,-490.0,0.00016438,2]
[369044529,1751443856862,-490.0,0.00016438,2]
[369044530,1751443856872,-490.0,0.00016438,2]
[369044533,1751443856882,-490.0,0.00016438,2]
[369044535,1751443856892,-490.0,0.00016438,2]
[369044537,1751443856901,-490.0,0.00016438,2]
[369044539,1751443856911,-4729.63,0.00016438,2]
[369044541,1751443856920,-490.0,0.00016438,2]